[Event "Titled Tuesday Blitz August 22 Late 2023"]
[White "Pham, Le Thao Nguyen"]
[Black "Tinmaz, Kerem"]
[WhiteFideId "12401226"]
[BlackFideId "44559151"]
[WhiteElo "2657"]
[BlackElo "2367"]
[Result "1-0"]
[Round "1"]
[TimeControl "180+1"]
[Date "2023.08.22"]
[WhiteClock "0:01:51"]
[BlackClock "0:00:05"]
[Board "126"]

1. d4 {[%clk 0:02:55]}  d5 {[%clk 0:02:59]} 2. Nf3 {[%clk 0:02:52]}  Nf6 {[%clk 0:02:59]} 3. Bf4 {[%clk 0:02:52]}  Bf5 {[%clk 0:02:59]} 4. c4 {[%clk 0:02:51]}  e6 {[%clk 0:02:48]} 5. Nc3 {[%clk 0:02:51]}  c6 {[%clk 0:02:46]} 6. Qb3 {[%clk 0:02:49]}  Qb6 {[%clk 0:02:38]} 7. e3 {[%clk 0:02:48]}  Qxb3 {[%clk 0:02:10]} 8. axb3 {[%clk 0:02:47]}  a6 {[%clk 0:02:11]} 9. h3 {[%clk 0:02:45]}  h6 {[%clk 0:02:10]} 10. c5 {[%clk 0:02:45]}  Nbd7 {[%clk 0:02:09]} 11. b4 {[%clk 0:02:46]}  Rc8 {[%clk 0:01:59]} 12. Nd2 {[%clk 0:02:46]}  Ne4 {[%clk 0:01:05]} 13. Nb3 {[%clk 0:02:42]}  g5 {[%clk 0:00:17]} 14. Bh2 {[%clk 0:02:34]}  e5 {[%clk 0:00:17]} 15. dxe5 {[%clk 0:02:27]}  Nxc3 {[%clk 0:00:12]} 16. bxc3 {[%clk 0:02:26]}  Be6 {[%clk 0:00:12]} 17. Nd4 {[%clk 0:02:14]}  Bg7 {[%clk 0:00:09]} 18. f4 {[%clk 0:02:15]}  Ke7 {[%clk 0:00:07]} 19. f5 {[%clk 0:02:09]}  Nxe5 {[%clk 0:00:07]} 20. fxe6 {[%clk 0:02:08]}  fxe6 {[%clk 0:00:08]} 21. Be2 {[%clk 0:02:01]}  Rhf8 {[%clk 0:00:08]} 22. Rf1 {[%clk 0:01:52]}  Rxf1+ {[%clk 0:00:07]} 23. Kxf1 {[%clk 0:01:52]}  Rf8+ {[%clk 0:00:08]} 24. Kg1 {[%clk 0:01:53]}  Ng6 {[%clk 0:00:05]} 25. Bd6+ {[%clk 0:01:51]} 1-0


[Site "https://www.chess.com"]

[Event "Titled Tuesday Blitz August 22 Late 2023"]
[White "Arias, Juan Cruz"]
[Black "Seresin, Francesco"]
[WhiteFideId "118540"]
[BlackFideId "886335"]
[WhiteElo "2654"]
[BlackElo "2363"]
[Result "1-0"]
[Round "1"]
[TimeControl "180+1"]
[Date "2023.08.22"]
[WhiteClock "0:01:06"]
[BlackClock "0:00:00"]
[Board "128"]

1. d4 {[%clk 0:03:00]}  d5 {[%clk 0:02:58]} 2. Bf4 {[%clk 0:03:00]}  e6 {[%clk 0:02:58]} 3. e3 {[%clk 0:03:00]}  Nf6 {[%clk 0:02:58]} 4. Nf3 {[%clk 0:02:58]}  Bd6 {[%clk 0:02:58]} 5. Nbd2 {[%clk 0:02:54]}  O-O {[%clk 0:02:51]} 6. Bd3 {[%clk 0:02:51]}  b6 {[%clk 0:02:50]} 7. Qe2 {[%clk 0:02:48]}  a5 {[%clk 0:02:50]} 8. O-O {[%clk 0:02:48]}  Ba6 {[%clk 0:02:49]} 9. Bxa6 {[%clk 0:02:43]}  Nxa6 {[%clk 0:02:49]} 10. c3 {[%clk 0:02:43]}  c5 {[%clk 0:02:42]} 11. Rab1 {[%clk 0:02:23]}  Nb8 {[%clk 0:02:26]} 12. Rfd1 {[%clk 0:02:17]}  Nc6 {[%clk 0:02:24]} 13. Bxd6 {[%clk 0:02:14]}  Qxd6 {[%clk 0:02:23]} 14. dxc5 {[%clk 0:02:09]}  Qxc5 {[%clk 0:02:19]} 15. e4 {[%clk 0:02:08]}  dxe4 {[%clk 0:02:18]} 16. Nxe4 {[%clk 0:02:07]}  Nxe4 {[%clk 0:02:16]} 17. Qxe4 {[%clk 0:02:07]}  Rad8 {[%clk 0:02:15]} 18. g3 {[%clk 0:01:48]}  h6 {[%clk 0:02:12]} 19. Kg2 {[%clk 0:01:47]}  b5 {[%clk 0:02:01]} 20. Rbc1 {[%clk 0:01:46]}  Ne7 {[%clk 0:01:48]} 21. Qe2 {[%clk 0:01:36]}  Qc6 {[%clk 0:01:28]} 22. Kg1 {[%clk 0:01:33]}  Nd5 {[%clk 0:01:25]} 23. Nd4 {[%clk 0:01:31]}  Qc4 {[%clk 0:01:20]} 24. Kf1 {[%clk 0:01:18]}  Qxa2 {[%clk 0:01:03]} 25. Nxb5 {[%clk 0:01:15]}  Rb8 {[%clk 0:01:00]} 26. c4 {[%clk 0:01:15]}  Nb4 {[%clk 0:00:59]} 27. Rc3 {[%clk 0:01:13]}  Rfd8 {[%clk 0:00:53]} 28. Rdc1 {[%clk 0:01:09]}  Nd5 {[%clk 0:00:00]} 29. Ra3 {[%clk 0:01:06]} 1-0


[Site "https://www.chess.com"]

[Event "Titled Tuesday Blitz August 22 Late 2023"]
[White "kaanadayhamle"]
[Black "Skatchkov, Valery"]
[BlackFideId "24195812"]
[WhiteElo "2359"]
[BlackElo "2651"]
[Result "1/2-1/2"]
[Round "1"]
[TimeControl "180+1"]
[Date "2023.08.22"]
[WhiteClock "0:00:10"]
[BlackClock "0:00:16"]
[Board "129"]

1. e4 {[%clk 0:03:00]}  e5 {[%clk 0:02:54]} 2. Nf3 {[%clk 0:03:00]}  Nf6 {[%clk 0:02:54]} 3. Nxe5 {[%clk 0:03:00]}  d6 {[%clk 0:02:54]} 4. Nf3 {[%clk 0:03:00]}  Nxe4 {[%clk 0:02:55]} 5. Nc3 {[%clk 0:03:00]}  Nxc3 {[%clk 0:02:55]} 6. dxc3 {[%clk 0:03:01]}  Be7 {[%clk 0:02:56]} 7. Bc4 {[%clk 0:03:01]}  O-O {[%clk 0:02:56]} 8. O-O {[%clk 0:03:02]}  Nd7 {[%clk 0:02:56]} 9. Re1 {[%clk 0:03:02]}  c6 {[%clk 0:02:56]} 10. Bf4 {[%clk 0:03:02]}  d5 {[%clk 0:02:56]} 11. Bd3 {[%clk 0:03:03]}  Nc5 {[%clk 0:02:56]} 12. Qe2 {[%clk 0:03:01]}  Re8 {[%clk 0:02:17]} 13. Nd4 {[%clk 0:02:36]}  Nxd3 {[%clk 0:02:04]} 14. cxd3 {[%clk 0:02:33]}  Bd7 {[%clk 0:02:04]} 15. Qf3 {[%clk 0:02:29]}  Bf6 {[%clk 0:02:01]} 16. Nc2 {[%clk 0:02:30]}  Qb6 {[%clk 0:01:59]} 17. Rab1 {[%clk 0:02:22]}  Rxe1+ {[%clk 0:01:56]} 18. Nxe1 {[%clk 0:02:22]}  Re8 {[%clk 0:01:56]} 19. Qd1 {[%clk 0:02:00]}  Bf5 {[%clk 0:01:43]} 20. a3 {[%clk 0:01:39]}  h6 {[%clk 0:01:35]} 21. h3 {[%clk 0:01:37]}  a5 {[%clk 0:01:33]} 22. Qd2 {[%clk 0:01:32]}  a4 {[%clk 0:01:32]} 23. Nf3 {[%clk 0:01:24]}  Qb5 {[%clk 0:01:31]} 24. Rd1 {[%clk 0:01:21]}  c5 {[%clk 0:01:31]} 25. d4 {[%clk 0:01:19]}  Be4 {[%clk 0:01:27]} 26. dxc5 {[%clk 0:01:15]}  Qxc5 {[%clk 0:01:24]} 27. Be3 {[%clk 0:01:10]}  Qc8 {[%clk 0:01:19]} 28. Nd4 {[%clk 0:01:10]}  Be5 {[%clk 0:01:02]} 29. f3 {[%clk 0:00:55]}  Bg6 {[%clk 0:01:01]} 30. Bf4 {[%clk 0:00:55]}  Bf6 {[%clk 0:01:00]} 31. Bg3 {[%clk 0:00:43]}  Qc4 {[%clk 0:00:59]} 32. Bf2 {[%clk 0:00:42]}  Bg5 {[%clk 0:00:54]} 33. f4 {[%clk 0:00:41]}  Bf6 {[%clk 0:00:54]} 34. Re1 {[%clk 0:00:40]}  Be4 {[%clk 0:00:53]} 35. Ne2 {[%clk 0:00:29]}  Re6 {[%clk 0:00:34]} 36. Ng3 {[%clk 0:00:27]}  Bd3 {[%clk 0:00:25]} 37. Rxe6 {[%clk 0:00:25]}  fxe6 {[%clk 0:00:26]} 38. Qe3 {[%clk 0:00:21]}  Kf7 {[%clk 0:00:21]} 39. Qb6 {[%clk 0:00:20]}  Qc6 {[%clk 0:00:20]} 40. Qxc6 {[%clk 0:00:17]}  bxc6 {[%clk 0:00:21]} 41. Bd4 {[%clk 0:00:15]}  Be7 {[%clk 0:00:21]} 42. Kf2 {[%clk 0:00:14]}  c5 {[%clk 0:00:17]} 43. Be5 {[%clk 0:00:13]}  Bh4 {[%clk 0:00:17]} 44. Kf3 {[%clk 0:00:11]}  g6 {[%clk 0:00:16]} 45. Nh1 {[%clk 0:00:10]}  Be4+ {[%clk 0:00:17]} 46. Ke3 {[%clk 0:00:09]}  Bxg2 {[%clk 0:00:17]} 47. Nf2 {[%clk 0:00:10]}  Bxf2+ {[%clk 0:00:15]} 48. Kxf2 {[%clk 0:00:11]}  Bxh3 {[%clk 0:00:16]} 49. Kg3 {[%clk 0:00:11]}  Bf5 {[%clk 0:00:17]} 50. Kf2 {[%clk 0:00:11]}  g5 {[%clk 0:00:16]} 51. fxg5 {[%clk 0:00:11]}  hxg5 {[%clk 0:00:17]} 52. Bd6 {[%clk 0:00:12]}  Kf6 {[%clk 0:00:17]} 53. Bxc5 {[%clk 0:00:12]}  e5 {[%clk 0:00:18]} 54. Kg3 {[%clk 0:00:12]}  Bd3 {[%clk 0:00:17]} 55. Be3 {[%clk 0:00:11]}  Kf5 {[%clk 0:00:18]} 56. Bc5 {[%clk 0:00:11]}  Bc4 {[%clk 0:00:18]} 57. Bb6 {[%clk 0:00:11]}  Ke4 {[%clk 0:00:18]} 58. Bd8 {[%clk 0:00:11]}  Kf5 {[%clk 0:00:16]} 59. Bb6 {[%clk 0:00:11]}  Be2 {[%clk 0:00:16]} 60. Be3 {[%clk 0:00:10]}  Ke4 {[%clk 0:00:14]} 61. Bxg5 {[%clk 0:00:10]}  Kd3 {[%clk 0:00:14]} 62. Bf6 {[%clk 0:00:09]}  e4 {[%clk 0:00:15]} 63. Kf4 {[%clk 0:00:08]}  Kc2 {[%clk 0:00:13]} 64. Ke3 {[%clk 0:00:07]}  Bc4 {[%clk 0:00:13]} 65. Be7 {[%clk 0:00:08]}  Kxb2 {[%clk 0:00:13]} 66. Bb4 {[%clk 0:00:09]}  Kc2 {[%clk 0:00:14]} 67. Ba5 {[%clk 0:00:09]}  Kb3 {[%clk 0:00:15]} 68. Bb4 {[%clk 0:00:09]}  Kb2 {[%clk 0:00:15]} 69. Kd4 {[%clk 0:00:08]}  Kc2 {[%clk 0:00:16]} 70. Ke3 {[%clk 0:00:09]}  Kb3 {[%clk 0:00:16]} 71. Kd4 {[%clk 0:00:09]}  Kb2 {[%clk 0:00:16]} 72. Ke3 {[%clk 0:00:09]}  Kc1 {[%clk 0:00:17]} 73. Ba5 {[%clk 0:00:09]}  Bb3 {[%clk 0:00:17]} 74. Bb4 {[%clk 0:00:09]}  Kc2 {[%clk 0:00:18]} 75. Ba5 {[%clk 0:00:10]}  Bc4 {[%clk 0:00:18]} 76. Bb4 {[%clk 0:00:10]}  Kb3 {[%clk 0:00:16]} 77. Kd4 {[%clk 0:00:10]} 1/2-1/2


[Site "https://www.chess.com"]

[Event "Titled Tuesday Blitz August 22 Late 2023"]
[White "Battlecruiser_Operational"]
[Black "Ehlvest, Jaan"]
[BlackFideId "4500016"]
[WhiteElo "2356"]
[BlackElo "2647"]
[Result "0-1"]
[Round "1"]
[TimeControl "180+1"]
[Date "2023.08.22"]
[WhiteClock "0:01:41"]
[BlackClock "0:02:06"]
[Board "131"]

1. e4 {[%clk 0:03:00]}  c6 {[%clk 0:02:55]} 2. Nc3 {[%clk 0:03:00]}  d5 {[%clk 0:02:54]} 3. Nf3 {[%clk 0:03:00]}  dxe4 {[%clk 0:02:54]} 4. Nxe4 {[%clk 0:03:00]}  Nf6 {[%clk 0:02:55]} 5. Nxf6+ {[%clk 0:02:57]}  exf6 {[%clk 0:02:55]} 6. Bc4 {[%clk 0:02:56]}  Bd6 {[%clk 0:02:54]} 7. O-O {[%clk 0:02:55]}  h5 {[%clk 0:02:50]} 8. b3 {[%clk 0:02:53]}  h4 {[%clk 0:02:48]} 9. Re1+ {[%clk 0:02:52]}  Kf8 {[%clk 0:02:48]} 10. h3 {[%clk 0:02:47]}  Nd7 {[%clk 0:02:40]} 11. a4 {[%clk 0:02:46]}  Nb6 {[%clk 0:02:37]} 12. Bd3 {[%clk 0:02:45]}  Be6 {[%clk 0:02:28]} 13. a5 {[%clk 0:02:42]}  Nd5 {[%clk 0:02:28]} 14. Ba3 {[%clk 0:02:38]}  Bxa3 {[%clk 0:02:24]} 15. Rxa3 {[%clk 0:02:39]}  Qd6 {[%clk 0:02:23]} 16. Ra4 {[%clk 0:02:34]}  Nf4 {[%clk 0:02:22]} 17. Bf1 {[%clk 0:02:31]}  g5 {[%clk 0:02:21]} 18. Nd4 {[%clk 0:02:25]}  Bd7 {[%clk 0:02:16]} 19. a6 {[%clk 0:02:17]}  b5 {[%clk 0:02:11]} 20. g3 {[%clk 0:01:42]}  bxa4 {[%clk 0:02:07]} 21. gxf4 {[%clk 0:01:41]}  Qxd4 {[%clk 0:02:06]} 0-1


[Site "https://www.chess.com"]

[Event "Titled Tuesday Blitz August 22 Late 2023"]
[White "Mendez Fortes, Eduardo Jesus"]
[Black "Han, Yichen"]
[WhiteFideId "3502376"]
[BlackFideId "1054430"]
[WhiteElo "2638"]
[BlackElo "2351"]
[Result "1-0"]
[Round "1"]
[TimeControl "180+1"]
[Date "2023.08.22"]
[WhiteClock "0:01:01"]
[BlackClock "0:00:10"]
[Board "134"]

1. e4 {[%clk 0:02:57]}  c6 {[%clk 0:02:54]} 2. d4 {[%clk 0:02:56]}  d5 {[%clk 0:02:54]} 3. e5 {[%clk 0:02:54]}  Bf5 {[%clk 0:02:54]} 4. Nf3 {[%clk 0:02:55]}  e6 {[%clk 0:02:54]} 5. Be2 {[%clk 0:02:55]}  Ne7 {[%clk 0:02:51]} 6. Nbd2 {[%clk 0:02:54]}  Nd7 {[%clk 0:02:49]} 7. O-O {[%clk 0:02:53]}  Bg6 {[%clk 0:02:50]} 8. Nb3 {[%clk 0:02:52]}  Nf5 {[%clk 0:02:49]} 9. a4 {[%clk 0:02:41]}  Be7 {[%clk 0:02:48]} 10. g4 {[%clk 0:02:37]}  Nh4 {[%clk 0:02:47]} 11. Nxh4 {[%clk 0:02:35]}  Bxh4 {[%clk 0:02:48]} 12. f4 {[%clk 0:02:34]}  Be4 {[%clk 0:02:46]} 13. Bf3 {[%clk 0:02:22]}  f5 {[%clk 0:02:21]} 14. Bxe4 {[%clk 0:02:04]}  dxe4 {[%clk 0:02:16]} 15. g5 {[%clk 0:02:03]}  Nf8 {[%clk 0:02:14]} 16. Qh5+ {[%clk 0:01:58]}  Ng6 {[%clk 0:02:14]} 17. Be3 {[%clk 0:01:56]}  Kf7 {[%clk 0:02:10]} 18. Nc5 {[%clk 0:01:47]}  b6 {[%clk 0:02:05]} 19. Nb7 {[%clk 0:01:46]}  Qe7 {[%clk 0:01:34]} 20. Nd6+ {[%clk 0:01:44]}  Kg8 {[%clk 0:01:33]} 21. c4 {[%clk 0:01:40]}  Rd8 {[%clk 0:01:21]} 22. c5 {[%clk 0:01:36]}  Rxd6 {[%clk 0:00:31]} 23. cxd6 {[%clk 0:01:31]}  Qf7 {[%clk 0:00:32]} 24. Rac1 {[%clk 0:01:26]}  h6 {[%clk 0:00:32]} 25. Rxc6 {[%clk 0:01:21]}  hxg5 {[%clk 0:00:26]} 26. Rc8+ {[%clk 0:01:20]}  Nf8 {[%clk 0:00:27]} 27. Qxf7+ {[%clk 0:01:18]}  Kxf7 {[%clk 0:00:28]} 28. d7 {[%clk 0:01:17]}  gxf4 {[%clk 0:00:25]} 29. Rxf4 {[%clk 0:01:12]}  Be7 {[%clk 0:00:16]} 30. d8=Q {[%clk 0:01:07]}  Bxd8 {[%clk 0:00:16]} 31. Rxd8 {[%clk 0:01:08]}  g5 {[%clk 0:00:16]} 32. Rf1 {[%clk 0:01:05]}  f4 {[%clk 0:00:07]} 33. Bxf4 {[%clk 0:01:02]}  gxf4 {[%clk 0:00:08]} 34. Rxf4+ {[%clk 0:01:01]}  Ke7 {[%clk 0:00:09]} 35. Rdxf8 {[%clk 0:01:01]}  Rxf8 {[%clk 0:00:09]} 36. Rxf8 {[%clk 0:01:01]}  Kxf8 {[%clk 0:00:10]} 1-0


[Site "https://www.chess.com"]

[Event "Titled Tuesday Blitz August 22 Late 2023"]
[White "Ozen, Batuhan"]
[Black "Goltsev, Dmitry"]
[WhiteFideId "6345123"]
[BlackFideId "24176710"]
[WhiteElo "2350"]
[BlackElo "2635"]
[Result "1-0"]
[Round "1"]
[TimeControl "180+1"]
[Date "2023.08.22"]
[WhiteClock "0:00:25"]
[BlackClock "0:00:56"]
[Board "135"]

1. c4 {[%clk 0:02:58]}  Nf6 {[%clk 0:02:59]} 2. Nf3 {[%clk 0:02:58]}  b6 {[%clk 0:02:59]} 3. g3 {[%clk 0:02:58]}  Bb7 {[%clk 0:02:59]} 4. Bg2 {[%clk 0:02:59]}  g6 {[%clk 0:02:59]} 5. O-O {[%clk 0:02:59]}  Bg7 {[%clk 0:02:59]} 6. Nc3 {[%clk 0:03:00]}  O-O {[%clk 0:02:59]} 7. b4 {[%clk 0:03:01]}  a5 {[%clk 0:02:58]} 8. b5 {[%clk 0:02:56]}  d6 {[%clk 0:02:58]} 9. a4 {[%clk 0:02:52]}  Nbd7 {[%clk 0:02:58]} 10. Bb2 {[%clk 0:02:52]}  e5 {[%clk 0:02:57]} 11. d3 {[%clk 0:02:49]}  Nc5 {[%clk 0:02:57]} 12. Nd2 {[%clk 0:02:47]}  Bxg2 {[%clk 0:02:55]} 13. Kxg2 {[%clk 0:02:48]}  Qc8 {[%clk 0:02:55]} 14. Ba3 {[%clk 0:02:36]}  Qb7+ {[%clk 0:02:54]} 15. Kg1 {[%clk 0:02:35]}  Ne6 {[%clk 0:02:54]} 16. e3 {[%clk 0:02:30]}  Ng5 {[%clk 0:02:54]} 17. e4 {[%clk 0:02:20]}  Ne6 {[%clk 0:02:51]} 18. Nd5 {[%clk 0:02:13]}  Nxd5 {[%clk 0:02:51]} 19. cxd5 {[%clk 0:02:13]}  Nd4 {[%clk 0:02:51]} 20. Bb2 {[%clk 0:02:12]}  f5 {[%clk 0:02:50]} 21. Bxd4 {[%clk 0:02:12]}  exd4 {[%clk 0:02:51]} 22. Rc1 {[%clk 0:02:05]}  Rae8 {[%clk 0:02:49]} 23. Rc6 {[%clk 0:02:00]}  Rf7 {[%clk 0:02:47]} 24. Nf3 {[%clk 0:01:47]}  fxe4 {[%clk 0:02:46]} 25. Ng5 {[%clk 0:01:46]}  e3 {[%clk 0:02:43]} 26. fxe3 {[%clk 0:01:41]}  Rxf1+ {[%clk 0:02:41]} 27. Qxf1 {[%clk 0:01:42]}  Rf8 {[%clk 0:02:40]} 28. Qe2 {[%clk 0:01:36]}  Qc8 {[%clk 0:02:34]} 29. Ne6 {[%clk 0:01:33]}  Rf7 {[%clk 0:02:33]} 30. exd4 {[%clk 0:01:30]}  Bf6 {[%clk 0:02:30]} 31. Qc2 {[%clk 0:01:25]}  Bd8 {[%clk 0:02:25]} 32. Rxd6 {[%clk 0:01:21]}  Bf6 {[%clk 0:02:18]} 33. Rc6 {[%clk 0:01:19]}  Qa8 {[%clk 0:01:52]} 34. Qc4 {[%clk 0:01:11]}  h6 {[%clk 0:01:47]} 35. d6 {[%clk 0:01:09]}  Qe8 {[%clk 0:01:39]} 36. dxc7 {[%clk 0:01:05]}  Qc8 {[%clk 0:01:32]} 37. Rd6 {[%clk 0:00:59]}  Kh7 {[%clk 0:01:20]} 38. Rd8 {[%clk 0:00:53]}  Qb7 {[%clk 0:01:14]} 39. Ng5+ {[%clk 0:00:42]}  hxg5 {[%clk 0:01:09]} 40. Qxf7+ {[%clk 0:00:42]}  Kh6 {[%clk 0:01:09]} 41. Qxf6 {[%clk 0:00:35]}  Qxc7 {[%clk 0:01:00]} 42. Rh8+ {[%clk 0:00:33]}  Qh7 {[%clk 0:00:59]} 43. d5 {[%clk 0:00:27]}  g4 {[%clk 0:00:57]} 44. Qh4+ {[%clk 0:00:24]}  Kg7 {[%clk 0:00:57]} 45. Rxh7+ {[%clk 0:00:25]}  Kg8 {[%clk 0:00:57]} 46. Qe7 {[%clk 0:00:24]}  g5 {[%clk 0:00:56]} 47. Qf7# {[%clk 0:00:25]} 1-0


[Site "https://www.chess.com"]

[Event "Titled Tuesday Blitz August 22 Late 2023"]
[White "rionelG"]
[Black "Turayev, Shahruh"]
[BlackFideId "14003856"]
[WhiteElo "2347"]
[BlackElo "2631"]
[Result "0-1"]
[Round "1"]
[TimeControl "180+1"]
[Date "2023.08.22"]
[WhiteClock "0:00:11"]
[BlackClock "0:00:41"]
[Board "137"]

1. e4 {[%clk 0:03:00]}  d5 {[%clk 0:02:59]} 2. exd5 {[%clk 0:03:00]}  Qxd5 {[%clk 0:03:00]} 3. Nc3 {[%clk 0:03:00]}  Qa5 {[%clk 0:03:01]} 4. d4 {[%clk 0:03:00]}  Nf6 {[%clk 0:03:01]} 5. Bc4 {[%clk 0:03:00]}  Nc6 {[%clk 0:03:01]} 6. d5 {[%clk 0:02:59]}  Nb4 {[%clk 0:03:01]} 7. Bd2 {[%clk 0:02:54]}  Qc5 {[%clk 0:02:57]} 8. Bb3 {[%clk 0:02:40]}  Nbxd5 {[%clk 0:02:51]} 9. Nxd5 {[%clk 0:02:35]}  Nxd5 {[%clk 0:02:52]} 10. Qf3 {[%clk 0:02:24]}  c6 {[%clk 0:02:50]} 11. O-O-O {[%clk 0:02:19]}  Be6 {[%clk 0:02:37]} 12. Nh3 {[%clk 0:02:10]}  h6 {[%clk 0:02:36]} 13. Kb1 {[%clk 0:01:52]}  g5 {[%clk 0:02:26]} 14. Be3 {[%clk 0:01:31]}  g4 {[%clk 0:01:56]} 15. Qxf7+ {[%clk 0:01:21]}  Bxf7 {[%clk 0:01:53]} 16. Bxc5 {[%clk 0:01:22]}  gxh3 {[%clk 0:01:52]} 17. gxh3 {[%clk 0:01:20]}  O-O-O {[%clk 0:01:44]} 18. Rhe1 {[%clk 0:01:17]}  b6 {[%clk 0:01:38]} 19. Bxd5 {[%clk 0:01:13]}  Bxd5 {[%clk 0:01:35]} 20. Be3 {[%clk 0:00:50]}  Rg8 {[%clk 0:01:30]} 21. b3 {[%clk 0:00:48]}  Bf3 {[%clk 0:01:27]} 22. Rxd8+ {[%clk 0:00:43]}  Kxd8 {[%clk 0:01:28]} 23. Bf4 {[%clk 0:00:43]}  Rg6 {[%clk 0:01:22]} 24. Re3 {[%clk 0:00:37]}  Rg1+ {[%clk 0:01:18]} 25. Kb2 {[%clk 0:00:37]}  Bg7+ {[%clk 0:01:18]} 26. c3 {[%clk 0:00:37]}  Bh5 {[%clk 0:01:07]} 27. Bg3 {[%clk 0:00:33]}  Bf6 {[%clk 0:01:05]} 28. Rd3+ {[%clk 0:00:28]}  Ke8 {[%clk 0:01:04]} 29. Bf4 {[%clk 0:00:24]}  Bg6 {[%clk 0:01:03]} 30. Rg3 {[%clk 0:00:22]}  Rxg3 {[%clk 0:00:59]} 31. hxg3 {[%clk 0:00:23]}  h5 {[%clk 0:00:59]} 32. a4 {[%clk 0:00:20]}  Bf5 {[%clk 0:00:58]} 33. h4 {[%clk 0:00:19]}  e5 {[%clk 0:00:59]} 34. Be3 {[%clk 0:00:18]}  Kf7 {[%clk 0:00:59]} 35. Ka3 {[%clk 0:00:18]}  Ke6 {[%clk 0:00:56]} 36. c4 {[%clk 0:00:18]}  c5 {[%clk 0:00:52]} 37. a5 {[%clk 0:00:18]}  bxa5 {[%clk 0:00:47]} 38. Ka4 {[%clk 0:00:18]}  Bd8 {[%clk 0:00:45]} 39. Bxc5 {[%clk 0:00:17]}  Bb6 {[%clk 0:00:46]} 40. Bxb6 {[%clk 0:00:15]}  axb6 {[%clk 0:00:47]} 41. Kb5 {[%clk 0:00:16]}  Bc2 {[%clk 0:00:45]} 42. Kxb6 {[%clk 0:00:16]}  Bxb3 {[%clk 0:00:45]} 43. c5 {[%clk 0:00:16]}  a4 {[%clk 0:00:44]} 44. c6 {[%clk 0:00:16]}  Kd6 {[%clk 0:00:42]} 45. c7 {[%clk 0:00:16]}  Be6 {[%clk 0:00:41]} 46. f4 {[%clk 0:00:13]}  exf4 {[%clk 0:00:41]} 47. gxf4 {[%clk 0:00:11]}  a3 {[%clk 0:00:41]} 0-1


[Site "https://www.chess.com"]

[Event "Titled Tuesday Blitz August 22 Late 2023"]
[White "Dubreuil, Julien"]
[Black "Hansen, Torbjorn Ringdal"]
[WhiteFideId "621285"]
[BlackFideId "1501720"]
[WhiteElo "2338"]
[BlackElo "2630"]
[Result "1/2-1/2"]
[Round "1"]
[TimeControl "180+1"]
[Date "2023.08.22"]
[WhiteClock "0:01:27"]
[BlackClock "0:00:26"]
[Board "139"]

1. e4 {[%clk 0:03:00]}  e5 {[%clk 0:02:58]} 2. Nf3 {[%clk 0:03:00]}  Nc6 {[%clk 0:02:58]} 3. Bb5 {[%clk 0:03:00]}  a6 {[%clk 0:02:58]} 4. Ba4 {[%clk 0:03:00]}  Nf6 {[%clk 0:02:57]} 5. O-O {[%clk 0:03:00]}  Bc5 {[%clk 0:02:57]} 6. d3 {[%clk 0:02:58]}  b5 {[%clk 0:02:55]} 7. Bb3 {[%clk 0:02:58]}  d6 {[%clk 0:02:56]} 8. Be3 {[%clk 0:02:57]}  O-O {[%clk 0:02:50]} 9. Bxc5 {[%clk 0:02:53]}  dxc5 {[%clk 0:02:51]} 10. Nbd2 {[%clk 0:02:49]}  Qe7 {[%clk 0:02:51]} 11. Re1 {[%clk 0:02:48]}  Be6 {[%clk 0:02:44]} 12. Nf1 {[%clk 0:02:45]}  Rfd8 {[%clk 0:02:41]} 13. Qe2 {[%clk 0:02:44]}  Nd4 {[%clk 0:02:17]} 14. Nxd4 {[%clk 0:02:43]}  cxd4 {[%clk 0:02:18]} 15. Ng3 {[%clk 0:02:40]}  c5 {[%clk 0:02:16]} 16. Bxe6 {[%clk 0:02:38]}  fxe6 {[%clk 0:02:16]} 17. Rf1 {[%clk 0:02:37]}  Qd6 {[%clk 0:02:12]} 18. Nh5 {[%clk 0:02:35]}  Rf8 {[%clk 0:02:07]} 19. Nxf6+ {[%clk 0:02:32]}  Rxf6 {[%clk 0:02:08]} 20. f3 {[%clk 0:02:31]}  Rf7 {[%clk 0:01:59]} 21. Rf2 {[%clk 0:02:30]}  Rc8 {[%clk 0:01:55]} 22. Raf1 {[%clk 0:02:27]}  c4 {[%clk 0:01:54]} 23. g3 {[%clk 0:02:27]}  Qb4 {[%clk 0:01:48]} 24. b3 {[%clk 0:02:24]}  cxd3 {[%clk 0:01:46]} 25. cxd3 {[%clk 0:02:23]}  Qd6 {[%clk 0:01:30]} 26. f4 {[%clk 0:02:23]}  exf4 {[%clk 0:01:28]} 27. Rxf4 {[%clk 0:02:20]}  Rxf4 {[%clk 0:01:28]} 28. gxf4 {[%clk 0:02:17]}  Rc3 {[%clk 0:01:27]} 29. Rf3 {[%clk 0:02:11]}  Qc7 {[%clk 0:01:23]} 30. Rf2 {[%clk 0:02:10]}  Rc1+ {[%clk 0:01:15]} 31. Kg2 {[%clk 0:02:10]}  Qf7 {[%clk 0:01:13]} 32. Qg4 {[%clk 0:02:09]}  Rc3 {[%clk 0:01:10]} 33. Rf3 {[%clk 0:02:08]}  Rc2+ {[%clk 0:01:06]} 34. Rf2 {[%clk 0:02:08]}  Rc3 {[%clk 0:01:00]} 35. Rf3 {[%clk 0:02:08]}  a5 {[%clk 0:00:59]} 36. f5 {[%clk 0:02:08]}  exf5 {[%clk 0:00:57]} 37. exf5 {[%clk 0:02:08]}  Qf6 {[%clk 0:00:56]} 38. h4 {[%clk 0:02:00]}  Rc2+ {[%clk 0:00:53]} 39. Kh3 {[%clk 0:02:00]}  Qe5 {[%clk 0:00:51]} 40. Qf4 {[%clk 0:01:59]}  Qxf4 {[%clk 0:00:50]} 41. Rxf4 {[%clk 0:01:59]}  Rxa2 {[%clk 0:00:50]} 42. Rxd4 {[%clk 0:01:59]}  a4 {[%clk 0:00:50]} 43. bxa4 {[%clk 0:01:58]}  bxa4 {[%clk 0:00:51]} 44. Rd7 {[%clk 0:01:42]}  a3 {[%clk 0:00:50]} 45. Ra7 {[%clk 0:01:40]}  Ra1 {[%clk 0:00:49]} 46. h5 {[%clk 0:01:40]}  h6 {[%clk 0:00:47]} 47. Kg2 {[%clk 0:01:40]}  a2 {[%clk 0:00:47]} 48. Kh2 {[%clk 0:01:40]}  Kf8 {[%clk 0:00:47]} 49. d4 {[%clk 0:01:39]}  Ke8 {[%clk 0:00:47]} 50. d5 {[%clk 0:01:39]}  Kd8 {[%clk 0:00:48]} 51. d6 {[%clk 0:01:38]}  Kc8 {[%clk 0:00:48]} 52. Kg2 {[%clk 0:01:35]}  Kd8 {[%clk 0:00:44]} 53. Kh2 {[%clk 0:01:34]}  Rd1 {[%clk 0:00:35]} 54. Rxa2 {[%clk 0:01:32]}  Rxd6 {[%clk 0:00:35]} 55. Rg2 {[%clk 0:01:29]}  Rd7 {[%clk 0:00:35]} 56. Rg6 {[%clk 0:01:29]}  Ke8 {[%clk 0:00:32]} 57. f6 {[%clk 0:01:28]}  gxf6 {[%clk 0:00:28]} 58. Rxf6 {[%clk 0:01:27]}  Rh7 {[%clk 0:00:23]} 59. Kg3 {[%clk 0:01:27]}  Ke7 {[%clk 0:00:23]} 60. Rg6 {[%clk 0:01:27]}  Kf7 {[%clk 0:00:24]} 61. Kg4 {[%clk 0:01:27]}  Rg7 {[%clk 0:00:23]} 62. Kf5 {[%clk 0:01:25]}  Rxg6 {[%clk 0:00:23]} 63. hxg6+ {[%clk 0:01:25]}  Kg7 {[%clk 0:00:24]} 64. Kg4 {[%clk 0:01:25]}  Kxg6 {[%clk 0:00:25]} 65. Kh4 {[%clk 0:01:26]}  h5 {[%clk 0:00:26]} 66. Kg3 {[%clk 0:01:26]}  h4+ {[%clk 0:00:26]} 67. Kh3 {[%clk 0:01:26]}  Kf5 {[%clk 0:00:26]} 68. Kg2 {[%clk 0:01:26]}  h3+ {[%clk 0:00:26]} 69. Kxh3 {[%clk 0:01:27]} 1/2-1/2


[Site "https://www.chess.com"]